fUSD/lending_fUSD_20260507
["ID","MTS","AMOUNT","RATE_DAILY","PERIOD"]
[421771402,1778129443000,-347.458639,0.00017,2]
[421771404,1778129443000,-347.458639,0.00017,2]
[421771406,1778129443000,-696.249343,0.00017,2]
[421771405,1778129443000,-696.249343,0.00017,2]
[421771407,1778129443000,-696.249343,0.00017,2]
[421771409,1778129443000,-151.0,0.00017,2]
[421771410,1778129443000,-151.0,0.00017,2]
[421771411,1778129443000,-151.0,0.00017,2]
[421771415,1778129443000,-280.0,0.00017064,2]
[421771414,1778129443000,-238.0,0.00017014,2]
[421771412,1778129443000,-788.64,0.00017012,2]
[421771416,1778129443000,-2000.0,0.00017141,2]
[421771389,1778129443000,-306.789442,0.00017,2]
[421771403,1778129443000,-347.458639,0.00017,2]
[421771387,1778129443000,-507.858466,0.00017,2]
[421771371,1778129443000,-183.87269486,0.0001699,2]
[421771384,1778129443000,-151.0,0.00017,2]
[421771419,1778129443000,-150.0,0.00017187,2]
[421771357,1778129443000,-696.249343,0.00016922,2]
[421771359,1778129443000,-696.249343,0.00016922,2]
[421771358,1778129443000,-696.249343,0.00016922,2]
[421771361,1778129443000,-151.0,0.00016922,2]
[421771360,1778129443000,-151.0,0.00016922,2]
[421771365,1778129443000,-501.66572695,0.00016973,2]
[421771363,1778129443000,-229.452617,0.00016922,2]
[421771362,1778129443000,-151.0,0.00016922,2]
[421771364,1778129443000,-258.99037695,0.00016973,2]
[421771367,1778129443000,-150.0,0.00016973,2]
[421771372,1778129443000,-156.684,0.00016999,2]
[421771370,1778129443000,-1005.73709075,0.00016986,2]
[421771388,1778129443000,-507.858466,0.00017,2]
[421771366,1778129443000,-501.44919593,0.00016973,2]
[421771368,1778129443000,-500.0,0.00016973,2]
[421771373,1778129443000,-475679.33639273,0.00017,2]
[421771374,1778129443000,-151.0,0.00017,2]
[421771377,1778129443000,-151.0,0.00017,2]
[421771375,1778129443000,-151.0,0.00017,2]
[421771376,1778129443000,-151.0,0.00017,2]
[421771378,1778129443000,-151.0,0.00017,2]
[421771380,1778129443000,-151.0,0.00017,2]
[421771381,1778129443000,-151.0,0.00017,2]
[421771379,1778129443000,-151.0,0.00017,2]
[421771382,1778129443000,-175.587411,0.00017,2]
[421771386,1778129443000,-507.858466,0.00017,2]
[421771385,1778129443000,-507.858466,0.00017,2]
[421771369,1778129443000,-164.48892069,0.00016973,2]
[421771421,1778129443000,-354.0,0.00017243,2]
[421771425,1778129443000,-313.38061808,0.00017385,2]
[421771423,1778129443000,-320.73,0.00017286,2]
[421771457,1778129443000,-501.55567996,0.00018373,2]
[421771462,1778129443000,-501.47026417,0.00018373,2]
[421771460,1778129443000,-500.0,0.00018373,2]
[421771461,1778129443000,-500.0,0.00018373,2]
[421771459,1778129443000,-500.0,0.00018373,2]
[421771458,1778129443000,-500.0,0.00018373,2]
[421771463,1778129443000,-529.69266044,0.00018373,2]
[421771468,1778129443000,-2033.0,0.000186,2]
[421771465,1778129443000,-789.6,0.0001841,2]
[421771466,1778129443000,-313.63395885,0.000185,2]
[421771464,1778129443000,-313.63395885,0.000184,2]
[421771467,1778129443000,-157.37659745,0.00018571,2]
[421771469,1778129443000,-450.0,0.00018616,2]
[421771470,1778129443000,-359.10831272,0.00018629,2]
[421771471,1778129443000,-158.3,0.00018649,2]
[421771472,1778129443000,-12188.0314022,0.00018677,2]
[421771473,1778129443000,-14340.48907658,0.00018677,2]
[421771474,1778129443000,-155.0,0.00018699,2]
[421771475,1778129443000,-2000.0,0.00018699,2]
[421771476,1778129443000,-313.63395885,0.000187,2]
[421771477,1778129443000,-167.14,0.0001873,2]
[421771479,1778129443000,-310.0,0.00018853,3]
[421771478,1778129443000,-34869.776578,0.000188,2]
[421771480,1778129443000,-744.38615088,0.00018921,2]
[421771481,1778129443000,-504.73489469,0.00018921,2]
[421771417,1778129443000,-4298.23418777,0.00017143,2]
[421771483,1778129443000,-502.04883077,0.00018921,2]
[421771456,1778129443000,-500.0,0.00018373,2]
[421771453,1778129443000,-350.0,0.00018253,2]
[421771482,1778129443000,-503.80512866,0.00018921,2]
[421771455,1778129443000,-89313.58,0.00018356,2]
[421771454,1778129443000,-152.279433,0.00018356,2]
[421771428,1778129443000,-1562.15,0.00017572,2]
[421771429,1778129443000,-823.0,0.00017594,2]
[421771427,1778129443000,-508.22050108,0.00017521,2]
[421771430,1778129443000,-12188.0314022,0.00017621,2]
[421771435,1778129443000,-501.97983143,0.00017773,2]
[421771436,1778129443000,-501.19146193,0.00017773,2]
[421771432,1778129443000,-1540.03,0.00017625,2]
[421771431,1778129443000,-14340.48907658,0.00017621,2]
[421771434,1778129443000,-186.53575633,0.00017773,2]
[421771433,1778129443000,-350.0,0.00017697,2]
[421771437,1778129443000,-3292.0,0.00017774,2]
[421771438,1778129443000,-214.63993676,0.00017831,2]
[421771426,1778129443000,-250.0,0.00017521,2]
[421771441,1778129443000,-650.36913422,0.000179,2]
[421771452,1778129443000,-200.0,0.00018208,2]
[421771451,1778129443000,-313.63395885,0.000182,2]
[421771450,1778129443000,-344.26739,0.0001817,2]
[421771446,1778129443000,-344.26739,0.0001817,2]
[421771439,1778129443000,-160.0,0.00017831,2]
[421771447,1778129443000,-344.26739,0.0001817,2]
[421771448,1778129443000,-344.2674,0.0001817,2]
[421771449,1778129443000,-344.26739,0.0001817,2]
[421771443,1778129443000,-350.0,0.00018,2]
[421771444,1778129443000,-350.0,0.00018068,2]
[421771442,1778129443000,-313.63395885,0.00018,2]
[421771440,1778129443000,-207.9261601,0.00017831,2]
[421771445,1778129443000,-344.2674,0.0001817,2]
[421771525,1778129444000,-500.0,0.00019178,2]
[421771526,1778129444000,-450.51477892,0.00019178,2]
[421771523,1778129444000,-500.0,0.00019178,2]
[421771521,1778129444000,-500.0,0.00019178,2]
[421771514,1778129444000,-500.0,0.00019178,2]
[421771519,1778129444000,-500.0,0.00019178,2]
[421771518,1778129444000,-500.0,0.00019178,2]
[421771520,1778129444000,-500.0,0.00019178,2]
[421771515,1778129444000,-500.0,0.00019178,2]
[421771516,1778129444000,-500.0,0.00019178,2]
[421771517,1778129444000,-500.0,0.00019178,2]
[421771522,1778129444000,-500.0,0.00019178,2]
[421771531,1778129444000,-696.249343,0.00019178,2]
[421771527,1778129444000,-347.458639,0.00019178,2]
[421771528,1778129444000,-347.458639,0.00019178,2]
[421771530,1778129444000,-347.458639,0.00019178,2]
[421771533,1778129444000,-696.249343,0.00019178,2]
[421771532,1778129444000,-696.249343,0.00019178,2]
[421771529,1778129444000,-347.458639,0.00019178,2]
[421771534,1778129444000,-696.249343,0.00019178,2]
[421771536,1778129444000,-151.0,0.00019178,2]
[421771537,1778129444000,-151.0,0.00019178,2]
[421771535,1778129444000,-151.0,0.00019178,2]
[421771539,1778129444000,-194.935479,0.00019178,2]
[421771511,1778129444000,-500.0,0.00019178,2]
[421771524,1778129444000,-500.0,0.00019178,2]
[421771513,1778129444000,-500.0,0.00019178,2]
[421771497,1778129444000,-367.44543231,0.00019164,2]
[421771510,1778129444000,-160.636307,0.00019178,2]
[421771543,1778129444000,-194.935479,0.00019178,2]
[421771484,1778129444000,-508.54186299,0.00018921,2]
[421771485,1778129444000,-350.0,0.00018941,2]
[421771486,1778129444000,-39814.0733141,0.00019,2]
[421771487,1778129444000,-3979.53024941,0.00019,2]
[421771489,1778129444000,-151.0,0.00019,2]
[421771490,1778129444000,-151.0,0.00019,2]
[421771494,1778129444000,-151.0,0.00019101,2]
[421771488,1778129444000,-848.74262064,0.00019,2]
[421771492,1778129444000,-365.0,0.00019,2]
[421771491,1778129444000,-151.0,0.00019,2]
[421771493,1778129444000,-151.0,0.00019101,2]
[421771496,1778129444000,-151.0,0.00019101,2]
[421771495,1778129444000,-151.0,0.00019101,2]
[421771500,1778129444000,-292.670415,0.00019178,2]
[421771499,1778129444000,-306.789442,0.00019178,2]
[421771498,1778129444000,-306.789442,0.00019178,2]
[421771501,1778129444000,-306.789442,0.00019178,2]
[421771505,1778129444000,-292.670415,0.00019178,2]
[421771506,1778129444000,-160.636307,0.00019178,2]
[421771502,1778129444000,-292.670415,0.00019178,2]
[421771503,1778129444000,-306.789442,0.00019178,2]
[421771504,1778129444000,-292.670415,0.00019178,2]
[421771507,1778129444000,-160.636307,0.00019178,2]
[421771509,1778129444000,-160.636307,0.00019178,2]
[421771512,1778129444000,-500.0,0.00019178,2]
[421771548,1778129444000,-194.935479,0.00019178,2]
[421771541,1778129444000,-194.935479,0.00019178,2]
[421771552,1778129444000,-194.935479,0.00019178,2]
[421771581,1778129444000,-467.607674,0.00019178,2]
[421771577,1778129444000,-467.607674,0.00019178,2]
[421771582,1778129444000,-467.607674,0.00019178,2]
[421771583,1778129444000,-467.607674,0.00019178,2]
[421771584,1778129444000,-2240.47,0.00019178,2]
[421771585,1778129444000,-1152.0,0.00019288,2]
[421771586,1778129444000,-153.862908,0.000193,2]
[421771587,1778129444000,-151.0,0.000193,2]
[421771588,1778129444000,-151.0,0.000193,2]
[421771589,1778129444000,-175.914862,0.000193,2]
[421771591,1778129444000,-350.0,0.00019334,2]
[421771592,1778129444000,-4609.0,0.00019552,2]
[421771593,1778129444000,-350.0,0.00019666,2]
[421771594,1778129444000,-350.0,0.00019667,2]
[421771596,1778129444000,-12188.0314022,0.00019733,2]
[421771595,1778129444000,-748.97393075,0.00019714,2]
[421771597,1778129444000,-14340.48907658,0.00019733,2]
[421771600,1778129444000,-507.858466,0.00019733,2]
[421771599,1778129444000,-507.858466,0.00019733,2]
[421771598,1778129444000,-507.858466,0.00019733,2]
[421771601,1778129444000,-507.858466,0.00019733,2]
[421771603,1778129444000,-4987.2186905,0.000199,3]
[421771604,1778129444000,-277051.39518519,0.0001995,15]
[421771602,1778129444000,-350.0,0.00019751,2]
[421771550,1778129444000,-194.935479,0.00019178,2]
[421771579,1778129444000,-467.607674,0.00019178,2]
[421771576,1778129444000,-467.607674,0.00019178,2]
[421771590,1778129444000,-2277.82834113,0.00019311,2]
[421771580,1778129444000,-467.607674,0.00019178,2]
[421771578,1778129444000,-467.607674,0.00019178,2]
[421771551,1778129444000,-194.935479,0.00019178,2]
[421771544,1778129444000,-194.935479,0.00019178,2]
[421771546,1778129444000,-194.935479,0.00019178,2]
[421771549,1778129444000,-194.935479,0.00019178,2]
[421771553,1778129444000,-194.935479,0.00019178,2]
[421771556,1778129444000,-278.26813,0.00019178,3]
[421771554,1778129444000,-194.935479,0.00019178,2]
[421771555,1778129444000,-151.0,0.00019178,3]
[421771559,1778129444000,-151.0,0.00019178,2]
[421771557,1778129444000,-151.0,0.00019178,2]
[421771558,1778129444000,-151.0,0.00019178,2]
[421771561,1778129444000,-151.0,0.00019178,2]
[421771605,1778129444000,-194.935479,0.0001995,2]
[421771575,1778129444000,-467.607674,0.00019178,2]
[421771560,1778129444000,-151.0,0.00019178,2]
[421771573,1778129444000,-467.607674,0.00019178,2]
[421771572,1778129444000,-467.607674,0.00019178,2]
[421771571,1778129444000,-467.607674,0.00019178,2]
[421771569,1778129444000,-467.607674,0.00019178,2]
[421771574,1778129444000,-467.607674,0.00019178,2]
[421771568,1778129444000,-467.607674,0.00019178,2]
[421771566,1778129444000,-151.0,0.00019178,2]
[421771565,1778129444000,-151.0,0.00019178,2]
[421771563,1778129444000,-151.0,0.00019178,2]
[421771562,1778129444000,-151.0,0.00019178,2]
[421771570,1778129444000,-467.607674,0.00019178,2]
[421771643,1778129445000,-696.249343,0.0001995,2]
[421771646,1778129445000,-151.0,0.0001995,2]
[421771647,1778129445000,-151.0,0.0001995,2]
[421771645,1778129445000,-696.24933506,0.0001995,2]
[421771638,1778129445000,-347.458639,0.0001995,2]
[421771633,1778129445000,-292.670415,0.0001995,2]
[421771640,1778129445000,-347.458639,0.0001995,2]
[421771639,1778129445000,-347.458639,0.0001995,2]
[421771641,1778129445000,-347.458641,0.0001995,2]
[421771637,1778129445000,-160.636313,0.0001995,2]
[421771644,1778129445000,-696.249343,0.0001995,2]
[421771642,1778129445000,-696.249343,0.0001995,2]
[421771648,1778129445000,-151.0,0.0001995,2]
[421771658,1778129445000,-215.0,0.0002,2]
[421771649,1778129445000,-20314.91,0.00019968,2]
[421771652,1778129445000,-7504.46966318,0.0002,2]
[421771651,1778129445000,-1487.69636694,0.0002,5]
[421771653,1778129445000,-400.0,0.0002,2]
[421771654,1778129445000,-302.0,0.0002,2]
[421771656,1778129445000,-257.0,0.0002,2]
[421771657,1778129445000,-858.0,0.0002,2]
[421771655,1778129445000,-228.0,0.0002,2]
[421771659,1778129445000,-365.0,0.0002,2]
[421771663,1778129445000,-268.01,0.000205,7]
[421771660,1778129445000,-1000.0,0.0002,7]
[421771662,1778129445000,-155.0,0.00020399,2]
[421771650,1778129445000,-984.0,0.0002,2]
[421771634,1778129445000,-160.636307,0.0001995,2]
[421771607,1778129445000,-194.935479,0.0001995,2]
[421771635,1778129445000,-160.636307,0.0001995,2]
[421771664,1778129445000,-2758.87,0.00020548,2]
[421771609,1778129445000,-151.0,0.0001995,2]
[421771608,1778129445000,-194.935479,0.0001995,2]
[421771606,1778129445000,-194.935479,0.0001995,2]
[421771610,1778129445000,-151.0,0.0001995,2]
[421771611,1778129445000,-151.0,0.0001995,2]
[421771613,1778129445000,-151.0,0.0001995,2]
[421771612,1778129445000,-151.0,0.0001995,2]
[421771614,1778129445000,-152.726029,0.0001995,2]
[421771615,1778129445000,-151.0,0.0001995,2]
[421771618,1778129445000,-507.858466,0.0001995,2]
[421771619,1778129445000,-467.607674,0.0001995,2]
[421771616,1778129445000,-151.0,0.0001995,2]
[421771617,1778129445000,-151.0,0.0001995,2]
[421771620,1778129445000,-507.858466,0.0001995,2]
[421771623,1778129445000,-467.607674,0.0001995,2]
[421771621,1778129445000,-467.607674,0.0001995,2]
[421771624,1778129445000,-507.858458,0.0001995,2]
[421771622,1778129445000,-507.858466,0.0001995,2]
[421771625,1778129445000,-467.60768,0.0001995,2]
[421771626,1778129445000,-306.789442,0.0001995,2]
[421771628,1778129445000,-292.670415,0.0001995,2]
[421771629,1778129445000,-306.789442,0.0001995,2]
[421771627,1778129445000,-306.789442,0.0001995,2]
[421771630,1778129445000,-292.670415,0.0001995,2]
[421771631,1778129445000,-306.789444,0.0001995,2]
[421771636,1778129445000,-160.636307,0.0001995,2]
[421771632,1778129445000,-292.670415,0.0001995,2]
[421771661,1778129445000,-789.6,0.00020381,2]
[421771667,1778129445000,-4298.23418777,0.00020889,2]
[421771723,1778129445000,-161.232454,0.00023,2]
[421771698,1778129445000,-151.0,0.00021918,2]
[421771700,1778129445000,-800.0,0.00021918,5]
[421771702,1778129445000,-106059.64931784,0.00022,4]
[421771703,1778129445000,-450.0,0.00022,2]
[421771701,1778129445000,-1172.25,0.00021918,5]
[421771699,1778129445000,-154.762235,0.00021918,2]
[421771707,1778129445000,-858.0,0.00022,2]
[421771704,1778129445000,-302.0,0.00022,2]
[421771705,1778129445000,-228.0,0.00022,2]
[421771710,1778129445000,-650.36913422,0.000223,2]
[421771709,1778129445000,-365.0,0.00022,2]
[421771706,1778129445000,-257.0,0.00022,2]
[421771693,1778129445000,-151.0,0.00021918,2]
[421771711,1778129445000,-789.6,0.00022353,2]
[421771716,1778129445000,-2708.06767253,0.00023,2]
[421771714,1778129445000,-12188.0314022,0.000229,2]
[421771715,1778129445000,-14340.48907658,0.000229,2]
[421771717,1778129445000,-270872.09216698,0.00023,2]
[421771712,1778129445000,-251.1702133,0.00022407,2]
[421771719,1778129445000,-194.935479,0.00023,2]
[421771721,1778129445000,-194.935478,0.00023,2]
[421771718,1778129445000,-194.935479,0.00023,2]
[421771665,1778129445000,-12188.0314022,0.00020788,2]
[421771720,1778129445000,-194.935479,0.00023,2]
[421771724,1778129445000,-151.0,0.00023,2]
[421771722,1778129445000,-302.0,0.00023,2]
[421771713,1778129445000,-202.05,0.00022691,2]
[421771696,1778129445000,-151.0,0.00021918,2]
[421771708,1778129445000,-215.0,0.00022,2]
[421771695,1778129445000,-151.0,0.00021918,2]
[421771670,1778129445000,-199.23929393,0.00021,2]
[421771668,1778129445000,-157.37659745,0.00020905,2]
[421771697,1778129445000,-151.0,0.00021918,2]
[421771669,1778129445000,-1207.18934331,0.00021,2]
[421771666,1778129445000,-14340.48907658,0.00020788,2]
[421771672,1778129445000,-228.0,0.00021,2]
[421771674,1778129445000,-858.0,0.00021,2]
[421771676,1778129445000,-365.0,0.00021,2]
[421771675,1778129445000,-215.0,0.00021,2]
[421771677,1778129445000,-1422.0,0.00021145,2]
[421771673,1778129445000,-257.0,0.00021,2]
[421771679,1778129445000,-200.0,0.00021272,2]
[421771680,1778129445000,-200.0,0.00021272,2]
[421771678,1778129445000,-200.0,0.00021272,2]
[421771671,1778129445000,-302.0,0.00021,2]
[421771684,1778129445000,-259.89,0.00021272,2]
[421771683,1778129445000,-200.0,0.00021272,2]
[421771692,1778129445000,-5000.0,0.00021918,2]
[421771691,1778129445000,-1002.79,0.00021918,2]
[421771687,1778129445000,-6453.0,0.00021507,2]
[421771690,1778129445000,-14340.48907658,0.00021844,2]
[421771689,1778129445000,-12188.0314022,0.00021844,2]
[421771694,1778129445000,-151.0,0.00021918,2]
[421771688,1778129445000,-200.0,0.00021731,2]
[421771685,1778129445000,-202.05,0.00021273,2]
[421771682,1778129445000,-200.0,0.00021272,2]
[421771681,1778129445000,-200.0,0.00021272,2]
[421771686,1778129445000,-224.79501958,0.000215,2]
[421771764,1778129446000,-285.992992,0.00024658,2]
[421771755,1778129446000,-151.0,0.00024658,2]
[421771756,1778129446000,-151.0,0.00024658,2]
[421771757,1778129446000,-151.0,0.00024658,2]
[421771753,1778129446000,-1000.0,0.00024658,2]
[421771758,1778129446000,-151.0,0.00024658,2]
[421771761,1778129446000,-151.0,0.00024658,2]
[421771759,1778129446000,-151.0,0.00024658,2]
[421771762,1778129446000,-151.0,0.00024658,2]
[421771760,1778129446000,-151.0,0.00024658,2]
[421771763,1778129446000,-151.0,0.00024658,2]
[421771771,1778129446000,-151.0,0.00024658,2]
[421771770,1778129446000,-151.0,0.00024658,2]
[421771768,1778129446000,-151.0,0.00024658,2]
[421771767,1778129446000,-151.0,0.00024658,2]
[421771766,1778129446000,-151.0,0.00024658,2]
[421771769,1778129446000,-151.0,0.00024658,2]
[421771774,1778129446000,-151.0,0.00024658,2]
[421771776,1778129446000,-151.0,0.00024658,2]
[421771775,1778129446000,-151.0,0.00024658,2]
[421771773,1778129446000,-151.0,0.00024658,2]
[421771777,1778129446000,-157.689164,0.00024658,2]
[421771754,1778129446000,-151.0,0.00024658,2]
[421771765,1778129446000,-151.0,0.00024658,2]
[421771752,1778129446000,-327.37,0.00024658,2]
[421771772,1778129446000,-151.0,0.00024658,2]
[421771749,1778129446000,-4298.23418777,0.00024634,2]
[421771725,1778129446000,-223.471138,0.00023,2]
[421771727,1778129446000,-257.0,0.00023,2]
[421771728,1778129446000,-858.0,0.00023,2]
[421771731,1778129446000,-310.0,0.00023188,4]
[421771729,1778129446000,-215.0,0.00023,2]
[421771730,1778129446000,-365.0,0.00023,2]
[421771732,1778129446000,-157.37659747,0.00023239,2]
[421771734,1778129446000,-2750.0,0.00023359,5]
[421771737,1778129446000,-155.0,0.00023799,2]
[421771735,1778129446000,-7393.0,0.00023658,2]
[421771736,1778129446000,-157.6,0.00023701,2]
[421771751,1778129446000,-150.0,0.00024658,2]
[421771733,1778129446000,-8204.55440281,0.00023295,2]
[421771740,1778129446000,-302.0,0.00024,2]
[421771739,1778129446000,-500.0,0.00024,2]
[421771741,1778129446000,-228.0,0.00024,2]
[421771742,1778129446000,-257.0,0.00024,2]
[421771744,1778129446000,-215.0,0.00024,2]
[421771743,1778129446000,-858.0,0.00024,2]
[421771745,1778129446000,-373.30975754,0.00024,2]
[421771748,1778129446000,-789.6,0.00024324,2]
[421771747,1778129446000,-300.0,0.00024044,2]
[421771746,1778129446000,-1582.59801759,0.00024044,2]
[421771750,1778129446000,-512.22577348,0.00024657,2]
[421771738,1778129446000,-1252.31853848,0.00024,2]
[421771780,1778129446000,-186.292429,0.00024658,2]
[421771726,1778129446000,-228.0,0.00023,2]
[421771779,1778129446000,-186.292429,0.00024658,2]
[421771809,1778129446000,-1805.66331176,0.00025,2]
[421771810,1778129446000,-540.0,0.00025,2]
[421771812,1778129446000,-3078.65225433,0.00025,2]
[421771811,1778129446000,-617.87476287,0.00025,2]
[421771814,1778129446000,-2000.0,0.00025,2]
[421771813,1778129446000,-624.85380337,0.00025,5]
[421771815,1778129446000,-316.04682161,0.00025,2]
[421771816,1778129446000,-234.48117401,0.00025,2]
[421771818,1778129446000,-867.61764916,0.00025,2]
[421771817,1778129446000,-275.44701622,0.00025,2]
[421771819,1778129446000,-215.48052943,0.00025,2]
[421771807,1778129446000,-209.90641887,0.00025,2]
[421771820,1778129446000,-254.65712492,0.00025205,2]
[421771822,1778129446000,-782.58,0.00025234,30]
[421771821,1778129446000,-786.14,0.00025234,30]
[421771824,1778129446000,-786.14,0.00025523,2]
[421771828,1778129446000,-782.58,0.00025811,7]
[421771827,1778129446000,-786.14,0.00025811,7]
[421771826,1778129446000,-160.0,0.000258,3]
[421771825,1778129446000,-782.58,0.00025523,2]
[421771832,1778129446000,-4574.61256297,0.00026,2]
[421771830,1778129446000,-607.72626278,0.0002599,2]
[421771831,1778129446000,-174.093,0.00025994,2]
[421771778,1778129446000,-186.292429,0.00024658,2]
[421771823,1778129446000,-5529.0,0.000253,3]
[421771808,1778129446000,-786.94563637,0.00025,60]
[421771829,1778129446000,-31174.5580646,0.0002589,5]
[421771805,1778129446000,-782.58,0.00024946,7]
[421771806,1778129446000,-1126.89953138,0.00025,2]
[421771782,1778129446000,-186.292429,0.00024658,2]
[421771783,1778129446000,-186.292429,0.00024658,2]
[421771784,1778129446000,-186.292429,0.00024658,2]
[421771786,1778129446000,-186.292429,0.00024658,2]
[421771788,1778129446000,-186.292429,0.00024658,2]
[421771789,1778129446000,-186.292429,0.00024658,2]
[421771790,1778129446000,-186.292429,0.00024658,2]
[421771785,1778129446000,-186.292429,0.00024658,2]
[421771787,1778129446000,-186.292429,0.00024658,2]
[421771791,1778129446000,-186.292429,0.00024658,2]
[421771795,1778129446000,-186.292429,0.00024658,2]
[421771781,1778129446000,-186.292429,0.00024658,2]
[421771796,1778129446000,-186.292429,0.00024658,2]
[421771794,1778129446000,-186.292429,0.00024658,2]
[421771803,1778129446000,-882.0,0.000248,2]
[421771801,1778129446000,-616.0,0.000248,2]
[421771799,1778129446000,-782.58,0.00024658,2]
[421771802,1778129446000,-1000.0,0.000248,2]
[421771800,1778129446000,-9720.0,0.000247,2]
[421771792,1778129446000,-186.292429,0.00024658,2]
[421771797,1778129446000,-186.292427,0.00024658,2]
[421771793,1778129446000,-186.292429,0.00024658,2]
[421771798,1778129446000,-786.14,0.00024658,2]
[421771804,1778129446000,-786.14,0.00024946,7]
[421771862,1778129447000,-822.0,0.00026142,2]
[421771872,1778129447000,-150.127,0.00026322,2]
[421771881,1778129447000,-786.14,0.00026388,2]
[421771865,1778129447000,-657.86092592,0.0002615,2]
[421771867,1778129447000,-4554.0,0.00026229,2]
[421771869,1778129447000,-789.6,0.00026296,2]
[421771874,1778129447000,-150.0,0.00026322,2]
[421771876,1778129447000,-150.151,0.00026322,2]
[421771878,1778129447000,-150.0,0.00026322,2]
[421771889,1778129447000,-782.58,0.00026676,7]
[421771887,1778129447000,-786.14,0.00026676,7]
[421771885,1778129447000,-257.0,0.00026612,2]
[421771892,1778129447000,-650.36913422,0.000267,2]
[421771894,1778129447000,-310.0,0.0002676,8]
[421771896,1778129447000,-2490.8205228,0.00026784,2]
[421771899,1778129447000,-350.0,0.00026907,2]
[421771903,1778129447000,-350.0,0.00026907,2]
[421771860,1778129447000,-1050.0,0.00026142,2]
[421771906,1778129447000,-350.0,0.00026907,2]
[421771883,1778129447000,-782.58,0.00026388,2]
[421771858,1778129447000,-1050.0,0.00026142,2]
[421771841,1778129447000,-280.267,0.00026014,2]
[421771852,1778129447000,-1050.0,0.00026142,2]
[421771910,1778129447000,-350.0,0.00026907,2]
[421771833,1778129447000,-218.94628932,0.00026,2]
[421771834,1778129447000,-550.0,0.00026,2]
[421771837,1778129447000,-164.537,0.00026014,2]
[421771835,1778129447000,-214.63993676,0.00026,3]
[421771836,1778129447000,-5529.0,0.00026,5]
[421771840,1778129447000,-3537.0,0.00026014,2]
[421771839,1778129447000,-599.785,0.00026014,2]
[421771842,1778129447000,-1290.641,0.00026014,2]
[421771856,1778129447000,-1050.0,0.00026142,2]
[421771838,1778129447000,-925.0,0.00026014,2]
[421771844,1778129447000,-929.0,0.00026014,2]
[421771846,1778129447000,-786.14,0.00026099,30]
[421771843,1778129447000,-1232.417,0.00026014,2]
[421771847,1778129447000,-782.58,0.00026099,30]
[421771848,1778129447000,-1050.0,0.00026142,2]
[421771850,1778129447000,-1050.0,0.00026142,2]
[421771851,1778129447000,-1050.0,0.00026142,2]
[421771849,1778129447000,-1050.0,0.00026142,2]
[421771853,1778129447000,-1050.0,0.00026142,2]
[421771845,1778129447000,-6044.0,0.00026014,2]
[421771908,1778129447000,-350.0,0.00026907,2]
[421771901,1778129447000,-350.0,0.00026907,2]
[421771912,1778129447000,-350.0,0.00026907,2]
[421771966,1778129447000,-300.0,0.00027397,2]
[421771975,1778129447000,-537.692838,0.00027397,2]
[421771987,1778129447000,-537.692838,0.00027397,2]
[421771979,1778129447000,-537.692838,0.00027397,2]